[Event "FIDE WSCC 50 2022"]
[Site "Assisi"]
[Date "2022.11.15"]
[Round "2.10"]
[White "Sciupokas, Arunas"]
[Black "Hebert, Jean"]
[Result "0-1"]
[ECO "A00"]
[WhiteElo "1948"]
[BlackElo "2333"]
[Annotator "TA"]
[PlyCount "176"]
[EventDate "2022.11.14"]
[EventType "swiss"]
[EventCountry "ITA"]
[SourceTitle "playchess.com"]
[Source "ChessBase"]
[SourceQuality "1"]
[TimeControl "40/5400+30:1800+30"]

{[%evp 9,176,-35,-31,-21,-27,-21,-21,-24,-21,-35,-26,-37,-23,-73,-10,-13,0,-28,-5,-17,-10,-68,-42,-39,0,-36,-22,-59,-18,-28,-14,-29,0,-25,0,0,0,-21,12,15,21,12,28,6,30,0,22,-7,-7,-7,-8,-11,0,0,12,0,0,-9,-7,-28,0,-18,-14,-8,0,0,0,0,0,-7,0,-14,-7,-14,-10,-17,-16,-27,0,-24,25,-26,0,-14,0,0,0,-57,-41,-116,-112,-116,-76,-131,-124,-183,-133,-168,-57,-49,-34,-117,-59,-64,-85,-89,-66,-137,-50,-158,-43,-132,-146,-138,-81,-119,-7,-2,0,-122,-131,-117,-125,-265,-62,-61,-69,-205,-149,-138,-50,-67,-43,-50,0,0,0,0,0,-32,0,0,0,0,0,0,0,-8,0,-2,-8,-370,-232,-1539,-1529,-879,-1356,-1186,-590,-29975,-29976,-29975,-5222,-1626,-1515,-5069,-1317,-844,-768]} 1. Nc3 d5 2. Nf3 Nf6 3. d3 Nc6 4. g3 e5 5. Bg2 d4 6. Nb1 {A00: Irregular Openings.} Be7 7. O-O O-O 8. Bg5 {The position is equal.} Be6 9. Nbd2 h6 10. Bxf6 Bxf6 11. c4 (11. Re1 $11) 11... dxc3 (11... a5 $17) 12. bxc3 $11 Qd7 13. Re1 {[#]} Rab8 $146 ({Predecessor:} 13... Rfd8 14. Qa4 Rab8 15. Rab1 Qc8 16. Rb2 a6 17. Reb1 b5 18. Qc2 Qd7 19. a4 bxa4 20. Qxa4 Rxb2 21. Rxb2 {1-0 (37) Koziol,P (1410)-Metz,L (1535) LSS email 2008}) 14. Nb3 b6 {Prevents Nc5.} 15. Nbd2 (15. Qc2 $11) 15... Rfd8 (15... g5 {feels hotter.} 16. Qa4 g4 17. Nh4 Ne7) 16. Qc2 Be7 17. Red1 Qe8 18. Nf1 Bf6 19. N3d2 Na5 20. Ne3 c5 21. Rab1 Nc6 22. Ne4 Be7 23. Nd2 (23. Qa4 $5 {[%cal Re4c5]}) 23... Rbc8 24. Ndc4 Bf6 25. a4 Rb8 26. Rf1 Qd7 27. Rfd1 Ne7 28. Nd2 Bg5 29. Nec4 Bxd2 30. Nxd2 Bd5 31. Bxd5 Nxd5 32. Nf3 Qe6 33. e4 {[#]} Nf4 {[%cal Od8d6]} 34. Ne1 (34. a5 {is interesting.} Qh3 35. Ne1 Rd6 36. axb6 axb6 37. f3) 34... Ng6 (34... Nh3+ {keeps more tension.} 35. Kg2 Qg4 36. f3 Qd7) 35. f3 h5 36. Ng2 Qf6 37. Qf2 Rd7 38. Ne3 Ne7 39. Rd2 Rbd8 40. Qe2 Qc6 41. Ra1 h4 42. Nc4 Qe6 {[%cal Oe6c4]} 43. Rad1 f6 44. Qg2 Qc6 (44... Ng6 {feels stronger.}) 45. Nb2 (45. gxh4 $142 Qxa4 46. Kh1) 45... Kf7 46. f4 Ng6 47. f5 Ne7 48. g4 (48. Qf3 $11) 48... g5 $15 49. h3 (49. fxg6+ $15 Nxg6 50. h3) 49... a6 $17 50. Qe2 b5 {Inhibits Nc4.} 51. axb5 (51. Rc2 $142) 51... axb5 52. Ra1 (52. Qe3 $17 {was called for.}) 52... Nc8 (52... c4 $1 $19 {Hoping for ...cxd3.} 53. Rad1 b4) 53. c4 Nd6 (53... b4 $19 54. Nd1 Qd6) 54. cxb5 $15 Nxb5 55. Qf1 (55. Qe3 $15) 55... Nd4 (55... Kg7 $17) 56. Rad1 ({Not} 56. Nc4 $2 Nb3 57. Rad1 Nxd2 58. Rxd2 Qa4 $19) 56... Rb8 $36 {[%mdl 2048] Keeping White busy.} 57. Rf2 Ra7 {Black has more active pieces.} 58. Nc4 (58. Ra1 $1 $15 Rxa1 59. Qxa1) 58... Ra4 (58... Qa8 $1 $17) 59. Re1 (59. Rb1 $15 Rbb4 60. Rfb2) 59... Rb3 ({Black should play} 59... Kg7 $17 {[%cal Oa4c4] aiming for ...Rxc4!} 60. Ra1 Rxc4 $1 61. dxc4 Rb3) 60. Rc1 (60. Rb1 $15) 60... Rbb4 $17 61. Ne3 Rb7 (61... Kg7 $142 62. Nc4 Qb7) 62. Rd1 {[#]} Rd7 (62... Rb3 $1 $17 {[%cal Oc5c4] Strongly threatening ...c4!} 63. Rc1 Qb5) 63. Rb1 $11 Rb4 64. Rd1 (64. Nd5 $1 $11 Rb5 65. Ra1) 64... Rb3 65. Nc4 Qb5 {Against Na5} 66. Ne3 (66. Rc1 $17) 66... Rb7 $2 ({Black should try} 66... Nc6 $19 {Threatens to win with ...Nb4.} 67. Nc4 Rd4) 67. Nc4 $1 $15 {Black must now prevent Nd6+.} Ke7 $1 {Prevents Nd6.} 68. Kg2 (68. Ra2 $15) 68... Rd7 69. Rfd2 {[#]} Rb4 (69... Nc6 $1 $17 {...Nb4 is the strong threat.} 70. Kg1 Kf7) 70. Rf2 Qc6 71. Ne3 Nb5 72. Nd5+ $1 Rxd5 73. exd5 Qxd5+ 74. Kh2 Nd4 (74... Kf8 $5 {[%cal Rb5c3]}) 75. Qg2 Qxg2+ 76. Kxg2 $11 {[%mdl 4096] Endgame KRR-KRN} Rb3 {[%cal Oe5e4]} 77. Ra2 e4 78. Re1 Rxd3 79. Rxe4+ Kd6 {next ...Kd5 is good for Black.} 80. Rf2 $2 {[%mdl 8192]} (80. Ra8 $11 {and White has nothing to worry.}) 80... Rg3+ 81. Kh2 $2 (81. Kf1 Rxh3 82. Re8) 81... Kd5 $19 ({And not} 81... Nf3+ 82. Rxf3 Rxf3 83. Re6+ Kd5 84. Rxf6 $19) 82. Re8 Nf3+ 83. Rxf3 Rxf3 {KR-KR} 84. Re6 c4 85. Kg2 Rg3+ (85... Rf4 $142 86. Rxf6 c3 87. Rf8 c2 88. Rd8+ Ke4 89. Rc8 Kd3 90. f6 Rxf6 91. Rd8+ Kc3 92. Rc8+ Kb2 93. Rb8+ Kc1 94. Rb5 Kd2 95. Rd5+ Kc3 96. Rc5+ Kd3 97. Kg1 Rf4 98. Kg2 Rc4 99. Rd5+ Kc3 100. Rf5 c1=Q 101. Rf8 Qe1 102. Rf7 Qg3+ 103. Kh1 Qxh3+ 104. Kg1 Rxg4+ 105. Kf2 Rg2+ 106. Ke1 Qe3+ 107. Kf1 Rg1#) 86. Kf2 {Black is clearly winning.} Rxh3 {And now ...c3 would win.} 87. Rxf6 Rg3 (87... c3 $142 88. Ke2 Rh2+ 89. Kd1 Rd2+ 90. Kc1 h3) 88. Rf8 Rxg4 {Weighted Error Value: White=0.26 (precise) /Black=0.22 (precise)} 0-1

[Event "FIDE WSCC 50 2022"]
[Site "Assisi"]
[Date "2022.11.17"]
[Round "3.16"]
[White "Sturua, Zurab"]
[Black "Plotkin, Victor"]
[Result "1-0"]
[ECO "C47"]
[WhiteElo "2522"]
[BlackElo "2290"]
[Annotator "TA"]
[PlyCount "101"]
[EventDate "2022.11.14"]
[EventType "swiss"]
[EventCountry "ITA"]
[SourceTitle "playchess.com"]
[Source "ChessBase"]
[SourceQuality "1"]
[TimeControl "40/5400+30:1800+30"]

{[%evp 9,101,12,8,0,1,8,0,-6,0,-30,-30,-20,-8,-30,-18,-12,-17,-16,-18,-34,-53,-64,0,0,0,0,0,0,69,65,66,68,64,62,54,54,65,46,68,52,89,95,117,84,120,116,148,143,226,203,185,177,300,308,285,291,405,399,427,408,395,419,412,400,12827,12828,2693,6303,12827,12830,12838,12839,12841,9863,1933,0,12841,12842,12843,12843,12844,12844,12845,12845,12845,12841,12845,12845,12847,12846,12845,12846,12846,12846]} 1. e4 e5 2. Nf3 Nf6 3. Nc3 Nc6 4. a3 d5 5. exd5 Nxd5 6. Bb5 {C47: Scotch Four Knights and Four Knights with 4 g3.} Nxc3 7. bxc3 Bd6 8. O-O {The position is equal.} O-O 9. Re1 Bg4 {[%cal Bc8g4,Bg4h5,Bh5g6][%mdl 32]} 10. h3 Bh5 11. d4 exd4 12. g4 Bg6 13. cxd4 {[#]} Re8 $146 ({Predecessor:} 13... a6 14. Bd3 Re8 15. Rxe8+ Qxe8 16. Bxg6 hxg6 17. Qd3 b5 18. Bd2 Ne7 19. Re1 Qd7 {0-1 (47) Stehno,P (2344)-Berezjuk,S (2381) Czech Republic 2005}) 14. c3 Rxe1+ 15. Qxe1 Qe8 (15... Na5 $15) 16. Qxe8+ $11 Rxe8 17. Be3 ({Of course not} 17. d5 Be4 18. dxc6 Bxf3 19. cxb7 Re1+ 20. Bf1 Bxb7 $17) 17... a6 18. Bf1 f5 (18... h6 $11) 19. Nh4 $1 $14 f4 20. Nxg6 hxg6 21. Bd2 g5 22. a4 Nd8 23. Rb1 c6 24. Kg2 Bc7 {White stays focused until the end.} 25. c4 {[%cal Bc3c4,Bc4c5][%mdl 32]} Re7 26. Bc3 Kf7 27. Kf3 Bb8 {[%cal Oc6c5]} 28. c5 {Threatens to win with Bxa6.} Ba7 (28... Bc7 $16 29. Bc4+ Ke8) 29. Bc4+ Ke8 30. Rh1 Ne6 (30... Nf7 {might work better.} 31. Bd3 Kd7 32. Bf5+ Kc7) 31. h4 $18 gxh4 32. Rxh4 {aiming for Bxe6.} Kd7 33. Rh8 b5 34. axb5 axb5 35. Bxe6+ Kxe6 {[%mdl 4096] Endgame KRB-KRB} 36. Rd8 Rd7 {[#]} (36... Rb7 $142 37. Rd6+ (37. Kxf4 Bb8+ 38. Ke4 b4 $18) 37... Kf7 38. Rxc6 b4) 37. Rxd7 $1 Kxd7 38. Kxf4 {Hoping for Kf3. KB-KB} Ke6 39. Ke4 Bb8 40. f4 g6 41. Ba5 Kf6 42. Bc3 (42. Bd2 $142 Ke6 43. f5+ gxf5+ 44. gxf5+ Kd7 45. d5) 42... Ke6 $1 43. f5+ {White is clearly winning.} gxf5+ 44. gxf5+ Kd7 45. d5 Bg3 46. f6 Bh4 47. Ke5 Bg3+ {[#]} 48. Kf5 $1 Bf2 49. Bb4 Bd4 50. dxc6+ Kxc6 51. Ke6 {Weighted Error Value: White=0.26 (precise) /Black=0.25 (precise)} 1-0

[Event "FIDE WSCC 50 2022"]
[Site "Assisi"]
[Date "2022.11.17"]
[Round "3.17"]
[White "Berend, Elvira"]
[Black "Morovic Fernandez, Ivan"]
[Result "0-1"]
[ECO "C56"]
[WhiteElo "2280"]
[BlackElo "2480"]
[Annotator "TA"]
[PlyCount "50"]
[EventDate "2022.11.14"]
[EventType "swiss"]
[EventCountry "ITA"]
[SourceTitle "playchess.com"]
[Source "ChessBase"]
[SourceQuality "1"]
[TimeControl "40/5400+30:1800+30"]

{[%evp 21,50,0,0,0,0,-9,-5,0,-11,-14,-1,-15,-18,-31,-28,-30,-35,-64,-83,-93,-55,-87,-87,-77,-59,-108,-96,-183,-186,-605,-584]} 1. e4 e5 2. Nf3 Nc6 3. Bc4 Nf6 4. d4 exd4 5. O-O Nxe4 6. Re1 d5 7. Bxd5 Qxd5 8. Nc3 Qd7 9. Nxe4 Be7 10. Bg5 O-O 11. Bxe7 Qxe7 12. Nxd4 {[%cal Bf3d4,Bd4b3,Bb3c5][%mdl 32] C56: Two Knights: 4 d4 exd4 5 0-0 Nxe4.} Bd7 13. Nb3 Rae8 14. Re3 {The position is equal.} Bf5 15. Ng3 {[%csl LRe7,LRf5] [#] Pair of Knights!} Be6 $146 ({Predecessor:} 15... Qf6 16. Nxf5 Qxf5 17. Rc3 Re5 18. Qf1 Rfe8 19. Rd1 h6 20. h3 a5 21. a4 Qg6 {1-0 (56) Sukandar,I (2393)-Urkedal,F (2537) Adelaide 2018}) 16. c3 Qg5 17. Ne4 Qg6 {[#] Threatens to win with ...Bxb3.} 18. Nbc5 Bf5 {[%cal Rf5e4]} 19. Rg3 Qh6 20. Ng5 Re5 $40 {[%cal Be8e5,Be5e2,Be2e7][%mdl 160] Black has some attack.} 21. Nb3 Rd8 22. Qc1 Re2 23. h3 (23. Re3 $15 Rxe3 24. Qxe3) 23... Qf6 {Black has more active pieces. The white rooks are badly placed.} 24. Qf4 {[#]} (24. Nf3 $17) 24... Bg6 $1 $19 ({Not} 24... Rxb2 25. Re1 Bg6 26. Rge3 $17) 25. Qxc7 (25. Qxf6 gxf6 26. Nf3) 25... Re7 {Weighted Error Value: White=0.52/Black=0.06 (flawless)} 0-1

[Event "FIDE WSCC 50 2022"]
[Site "Assisi"]
[Date "2022.11.17"]
[Round "3.18"]
[White "Bischoff, Klaus"]
[Black "Terentiev, Sergei"]
[Result "1-0"]
[ECO "E61"]
[WhiteElo "2479"]
[BlackElo "2274"]
[Annotator "TA"]
[PlyCount "85"]
[EventDate "2022.11.14"]
[EventType "swiss"]
[EventCountry "ITA"]
[SourceTitle "playchess.com"]
[Source "ChessBase"]
[SourceQuality "1"]
[TimeControl "40/5400+30:1800+30"]

{[%evp 12,85,23,18,72,66,76,76,87,63,76,68,80,72,69,68,120,93,91,66,85,86,93,86,91,81,77,74,77,70,65,42,41,50,76,45,85,85,121,124,126,121,114,100,194,11,0,0,0,-12,0,-27,-18,-32,-50,-50,-52,-88,-95,-87,-46,-152,-10,-11,-27,-23,-7,-47,55,0,0,0,28,16,547,537]} 1. d4 Nf6 2. c4 g6 3. Nf3 Bg7 4. e3 O-O 5. Be2 c5 6. d5 d6 7. Nc3 e5 {E61: King's Indian: Early deviations for White, including Smyslov System.} (7... e6 $11) 8. e4 $16 Nh5 9. g3 {[#]} a6 $146 {White is better.} ({Predecessor:} 9... Nd7 10. Bg5 Bf6 11. Be3 Be7 12. Nd2 Ndf6 13. h3 Ng7 14. g4 Nfe8 15. Nf3 a6 {1-0 (46) Sychev,K (2550)-Antipov,M (2615) Warsaw 2021}) 10. a4 b6 11. Nd2 Nf6 $1 12. h4 {[%cal Oa4a5]} h5 13. a5 Ng4 (13... bxa5 $14 14. Nb3 a4 15. Rxa4 Nbd7) 14. axb6 Qxb6 15. Qb3 Qc7 16. Nf3 Ra7 17. Ng5 Nh6 18. Bd2 {White has more active pieces.} Rb7 19. Qc2 Qe7 20. f3 f6 21. Nh3 (21. Qc1 {with more complications.} fxg5 22. Bxg5 Rf6 23. Bxh6 Bxh6 24. Qxh6 Rxb2 25. O-O) 21... Bxh3 22. Rxh3 f5 {Inhibits g4.} 23. Nd1 {[%cal Bc3d1,Bd1f2,Bf2d3][%mdl 32]} f4 24. Nf2 fxg3 25. Rxg3 Qxh4 26. Rg2 Qf6 27. O-O-O $1 {[%mdl 1024] Strongly threatening Rdg1. White has strong compensation.} Nd7 (27... Nf7 $16 {was worth a try.}) 28. Qa4 $2 (28. Rdg1 $18 Kh7 29. Nd3 (29. Rxg6 Qxg6 30. Rxg6 Kxg6 $16)) 28... Rfb8 $11 {[%cal Ob7b2]} 29. Nd3 Nf7 30. Rdg1 Nf8 31. Kb1 Bh6 32. Bc3 Be3 {Inhibits f4.} 33. Rh1 h4 34. Rg4 Bd4 $1 35. Bxd4 exd4 {[%cal Be5d4,Bd4d3][%mdl 32]} 36. f4 {[#] Prevents Ne5.} (36. Rhxh4 $2 Rxb2+ $3 {[%mdl 512]} 37. Nxb2 d3 $19) (36. Rgxh4 $15 Ne5 37. Rh8+ Kg7 38. Ka1 (38. Qxa6 $2 Nxd3 39. R1h7+ Nxh7 $19)) 36... Rxb2+ 37. Nxb2 d3 {[%csl Gb8][%cal Rf6b2] Against Qc2} 38. e5 $1 dxe5 39. Bd1 (39. Bxd3 e4 40. Rg2 exd3 $17) 39... e4 (39... exf4 $15 40. Bb3 f3) 40. Rg2 ({White should play} 40. Qa3 $1 $14) 40... e3 41. Qa3 {[%csl LRc5,LRd3]} ({Don't go for} 41. Qc6 $2 Nd6 42. Qc7 Rb7 43. Qxb7 Nxb7 44. Nxd3 Nd6 $19) 41... Qd4 {And now ...Nd6 would win.} 42. Ka1 $1 Nd6 $2 {[%mdl 8192]} ({Don't play} 42... e2 43. Bxe2 dxe2 44. Rxe2 $14) (42... d2 $1 $11) 43. Qxd3 {Weighted Error Value: White=0.18 (very precise) /Black=0.37} 1-0

[Event "FIDE WSCC 50 2022"]
[Site "Assisi"]
[Date "2022.11.17"]
[Round "3.19"]
[White "Loeffler, Markus"]
[Black "Holzke, Frank"]
[Result "0-1"]
[ECO "B90"]
[WhiteElo "2260"]
[BlackElo "2476"]
[Annotator "TA"]
[PlyCount "42"]
[EventDate "2022.11.14"]
[EventType "swiss"]
[EventCountry "ITA"]
[SourceTitle "playchess.com"]
[Source "ChessBase"]
[SourceQuality "1"]
[TimeControl "40/5400+30:1800+30"]

{[%evp 11,42,13,41,45,35,51,45,42,52,54,60,56,50,55,68,41,31,5,71,0,-10,-104,-37,-106,-94,-506,-508,-502,-488,-531,-528,-1004,-984]} 1. e4 {ChessBase II} c5 2. Nf3 {[%cal Bg1f3,Bf3d4,Bd4b3][%mdl 32]} d6 3. d4 cxd4 4. Nxd4 Nf6 5. Nc3 a6 6. f3 Qb6 7. g4 {B90: Sicilian Najdorf: Unusual White 6th moves, 6 Be3 Ng4 and 6 Be3 e5.} Nc6 8. Nb3 h6 9. Qe2 {White is slightly better.} e6 {[%cal Od6d5]} 10. Be3 Qc7 11. O-O-O b5 12. h4 Bb7 13. Bh3 {[#]} Ne5 $146 ({Predecessor:} 13... b4 14. Na4 Nd7 15. Qf2 Rc8 16. Nb6 Nxb6 17. Bxb6 Qb8 18. f4 Ne5 19. fxe5 Bxe4 {0-1 (62) Osmanodja,F (2055)-Giffard,N (2318) Aix les Bains 2011 CBM 142 Extra [ChessBase II]}) 14. g5 Nh5 {[#]} (14... b4 $11 15. Na4 (15. gxf6 bxc3 16. fxg7 cxb2+ 17. Kb1 Bxg7 $11) 15... Nfd7) 15. Rhe1 (15. Qf2 $1 $16) 15... hxg5 $11 16. Bxg5 (16. hxg5 $11 b4 17. Na4) 16... Be7 (16... b4 $17 17. Nb1 Be7) 17. Bg4 (17. Qf2 $15) 17... b4 $17 18. Nb1 $2 {[%mdl 8192] This costs White the game.} (18. Nd5 $17 {is tougher.} exd5 19. Bxh5 Rxh5 20. Bxe7 Qxe7 21. f4 Rxh4 22. fxe5 Rxe4 23. Qf2 dxe5 24. Na5) 18... Bxg5+ $19 {Black is clearly winning.} 19. hxg5 {Threatens to win with Bxh5.} Nf4 20. Qf1 Rh2 {[%csl Gc7][%cal Rh2c2]} 21. c3 {[#]} Rf2 $3 {[%mdl 512] Weighted Error Value: White=0.92/Black=0.14 (very precise)} 0-1

[Event "FIDE WSCC 50 2022"]
[Site "Assisi"]
[Date "2022.11.17"]
[Round "3.20"]
[White "Pavlovic, Milos"]
[Black "Mantovani, Renzo"]
[Result "1-0"]
[ECO "D12"]
[WhiteElo "2447"]
[BlackElo "2246"]
[Annotator "TA"]
[PlyCount "73"]
[EventDate "2022.11.14"]
[EventType "swiss"]
[EventCountry "ITA"]
[SourceTitle "playchess.com"]
[Source "ChessBase"]
[SourceQuality "1"]
[TimeControl "40/5400+30:1800+30"]

{[%evp 11,73,25,23,19,18,19,30,23,35,29,28,26,33,18,29,29,62,68,78,62,100,86,108,95,97,102,106,95,90,88,96,96,115,106,123,128,128,115,100,115,99,124,143,141,723,704,730,705,822,755,729,159,671,-769,172,114,110,56,58,60,47,54,29997,29998]} 1. d4 d5 2. Nf3 Nf6 3. e3 Bf5 4. c4 e6 5. Nc3 c6 6. Nh4 Bg6 7. Bd2 {D12: Slav Defence: 3 Nf3 Nf6 4 e3 Bf5.} Bh5 8. Qb3 Qb6 9. h3 {White has an edge.} Be7 10. g4 Bg6 11. Nxg6 hxg6 12. Bg2 Na6 13. Qa4 {[#]} O-O $146 ({Not} 13... Qxb2 14. Rb1 Qa3 15. Rxb7 Qxa4 16. Nxa4 $16) ({Predecessor:} 13... Qb4 14. Qc2 dxc4 15. Nd5 Qb5 16. a4 Qb3 17. Qxb3 cxb3 18. Nxe7 Kxe7 19. Ra3 Rad8 20. Rxb3 {1-0 (54) Cori,J (2664)-Saber,Y (2192) Batumi 2018}) 14. g5 Nh5 (14... Qxb2 $2 15. Rb1 Qa3 16. gxf6 Qxa4 17. Nxa4 $18) 15. h4 c5 (15... Qxb2 $2 16. Rb1 Qa3 17. Rxb7 $18) 16. cxd5 cxd4 17. Qxd4 Qxd4 ({Weaker is} 17... Bc5 18. Qa4 $16 (18. Qd3 Nb4 $14)) 18. exd4 {[%cal Od5d6]} Nb4 19. O-O {[%cal Bh1f1,Bf1e1,Be1e6][%mdl 32] Threatens to win with dxe6.} Nc2 {[%cal Bb4c2,Bc2d4,Bd4f5][%mdl 32]} 20. Rad1 Nxd4 21. Rfe1 Rad8 {[#]} 22. Bc1 $1 Nf5 23. dxe6 fxe6 24. Rxd8 Bxd8 25. Rxe6 Bb6 {[%cal Ob6f2]} 26. Be3 Nxe3 27. fxe3 Bxe3+ $2 {[%mdl 8192]} (27... Nf4 $16 28. Rxb6 axb6) 28. Rxe3 $18 Nf4 29. Bxb7 Rf7 30. Bg2 Nxg2 {[%mdl 4096] Endgame KRN-KRN} 31. Re4 $2 (31. Re8+ $18 {and White stays clearly on top.} Kh7 32. Kxg2) 31... Ne3 $2 (31... Nf4 $16 32. Ra4 Ne6) 32. Re7 $4 {[%mdl 8192]} Rf1+ $2 (32... Rxe7 $19 33. Kf2 Nf5) 33. Kh2 $16 Nf5 {[#]} 34. Rxa7 {White is more active.} (34. Kg2 $1 $16) 34... Rf2+ $14 35. Kh3 {And now Rb7 would win.} Rxb2 36. Nd5 {[%cal Oh4h5]} Kh7 $2 {[%mdl 8192]} (36... Rb1 $14) 37. Nf6+ $1 {Weighted Error Value: White=0.50/Black=0.77} 1-0

[Event "FIDE WSCC 50 2022"]
[Site "Assisi"]
[Date "2022.11.17"]
[Round "3.21"]
[White "Michalek, Jan"]
[Black "Lima, Darcy"]
[Result "0-1"]
[ECO "C70"]
[WhiteElo "2251"]
[BlackElo "2415"]
[Annotator "TA"]
[PlyCount "58"]
[EventDate "2022.11.14"]
[EventType "swiss"]
[EventCountry "ITA"]
[SourceTitle "playchess.com"]
[Source "ChessBase"]
[SourceQuality "1"]
[TimeControl "40/5400+30:1800+30"]

{[%evp 9,58,-10,6,-6,-17,-18,-23,-5,-15,-5,-10,-14,-8,-4,-3,-12,-22,-16,-22,-56,-44,-55,-70,-129,-45,-52,-49,-89,-9,-63,-21,-25,-42,-20,0,-58,-57,-80,-80,-107,-112,-120,-85,-83,-94,-100,0,-168,-172,-580,-197]} 1. e4 e5 2. Nf3 Nc6 3. Bb5 a6 4. Ba4 Nge7 5. c4 Ng6 6. d4 {C70: Ruy Lopez: 3...a6 4 Ba4, Norwegian and Delayed Schliemann.} exd4 7. Nxd4 Bb4+ {[#]} 8. Nc3 $146 {Black has an edge.} ({Predecessor:} 8. Bd2 Qe7 9. Bxc6 dxc6 10. O-O Bxd2 11. Qxd2 O-O 12. Nc3 f5 13. exf5 Bxf5 14. Nxf5 Rxf5 {½-½ (24) Helbach,G-Tereshchenko,N St Petersburg 1909}) 8... O-O 9. O-O Nxd4 10. Qxd4 d6 11. Nd5 Bc5 12. Qc3 c6 13. Nf4 Qb6 {Prevents b4.} 14. Bb3 Be6 15. Qg3 a5 {[%cal Ba6a5,Ba5a4][%mdl 32]} 16. a3 (16. Nd3 $15) 16... Rfe8 {Black is more active.} (16... a4 $17 17. Ba2 Nxf4 18. Qxf4 Rae8) 17. Rb1 $15 a4 18. Nxe6 fxe6 ({Don't do} 18... Qxb3 19. Qxb3 axb3 20. Nc7 $16) (18... axb3 $6 19. Nxc5 Qxc5 20. Qxb3 $11) (18... Rxe6 $17 19. Bc2 Ne5) 19. Bc2 (19. Bd1 $1 $11) 19... e5 (19... Rf8 $5 {[%cal Rf8f2]} 20. Kh1 e5 $15) 20. b4 axb3 21. Rxb3 Qa7 22. Qg4 (22. Bd1 $11) 22... Rf8 23. Be3 Bxe3 24. Qe6+ Kh8 {[%cal Rf8f2]} 25. Rxe3 Nf4 26. Qg4 (26. Qxd6 $2 Qxe3 $3 {[%mdl 512]} 27. Qd1 Ne2+ 28. Kh1 Rxf2 29. Rxf2 Qxf2 $19) 26... Rf6 $36 {[%mdl 2048] Hoping for ...Rg6. Black is on the roll.} 27. g3 Raf8 (27... Rd8 $17 {[%cal Oa7c5] ...Qc5! is the strong threat.} 28. c5 (28. gxf4 Rg6 $17) 28... Qxc5) 28. c5 $2 (28. gxf4 $11 {and White is okay.} Rg6 29. Qxg6 hxg6 30. c5 exf4 31. Rh3+ Kg8 32. Bb3+ (32. cxd6 Kf7 $17) 32... d5 33. exd5) 28... Qxc5 $19 29. Bb3 $2 {[#]} (29. gxf4 Qxc2 30. f5) 29... Ng6 $2 {Weighted Error Value: White=0.41/Black=0.19 (very precise)} (29... Nd3 $1 {[%mdl 512]} 30. Kg2 {[#]} (30. Rxd3 Rxf2 31. Qd1 Rxf1+ 32. Kg2 Rxd1 33. Bxd1 Qf2+ 34. Kh3 Qf1+ 35. Kh4 Qxd3 36. Kh3 Qxd1 37. Kh4 g6 38. g4 Qe1+ 39. Kg5 Kg7 40. h4 h6#) 30... d5 $1) 0-1

[Event "FIDE WSCC 50 2022"]
[Site "Assisi"]
[Date "2022.11.17"]
[Round "3.22"]
[White "Calzetta Ruiz, Monica"]
[Black "Novik, Maxim"]
[Result "0-1"]
[ECO "B10"]
[WhiteElo "2244"]
[BlackElo "2412"]
[Annotator "TA"]
[PlyCount "76"]
[EventDate "2022.11.14"]
[EventType "swiss"]
[EventCountry "ITA"]
[SourceTitle "playchess.com"]
[Source "ChessBase"]
[SourceQuality "1"]
[TimeControl "40/5400+30:1800+30"]

{[%evp 13,76,14,5,3,0,0,0,0,8,0,0,0,0,0,0,0,0,0,25,0,0,0,18,33,30,23,39,35,43,36,99,0,0,0,0,-19,-8,0,0,-22,-20,-35,-29,-48,-11,-15,-9,-43,-34,-414,-112,-147,-94,-188,-180,-220,-173,-334,-330,-322,-171,-29971,-29972,-29999,-29991]} 1. e4 c6 2. c4 d5 3. exd5 cxd5 4. cxd5 Nf6 5. Nc3 Nxd5 6. Nf3 Nxc3 7. bxc3 g6 8. Bb5+ {B10: Caro-Kann: 2 d3 and 2 c4.} Bd7 9. a4 Bg7 10. O-O {The position is equal.} O-O 11. Ba3 Nc6 {[%cal Bb8c6,Bc6a5,Ba5c4][%mdl 32]} 12. Re1 Re8 13. d4 Rc8 14. Ng5 h6 ({Resist} 14... e5 15. Nxf7 $1 Kxf7 16. Bc4+ Kf6 17. Qf3+ Bf5 18. g4 Nxd4 19. cxd4 Rxc4 20. gxf5 Rxd4 21. fxg6+ (21. Qxb7 Qc8 $15) 21... Kxg6 22. Kh1 $14 (22. Bc1 Qd5 $15)) 15. Ne4 b6 {[#] Prevents Nc5.} 16. Qf3 $146 ({Predecessor:} 16. h4 Na5 17. Bb4 Nc6 18. Ba3 Na5 19. Bb4 Nc6 20. Ba3 {½-½ (20) Popilski,G (2502)-Macieja,B (2533) Dallas 2017}) 16... Na5 17. Bb4 Nc4 18. Ba6 Rc7 19. h4 {[%cal Bh2h4,Bh4h5][%mdl 32]} Be6 20. h5 g5 21. a5 Qd7 {[#]} (21... Qd5 $14) 22. axb6 (22. Qg3 $1 $16) 22... axb6 $11 23. Qg3 {[%cal Oa6b5] Hoping for Bb5!} Ra7 24. Bxc4 Rxa1 25. Rxa1 Bxc4 26. Qe3 Bd5 27. Re1 {[%cal Oe4d6]} Bc6 28. f4 gxf4 29. Qxf4 Qd5 {Threatens to win with ...f5.} 30. Qg3 {[%cal Ob4e7] And now Bxe7! would win.} Kh8 31. Re3 $2 {[%mdl 8192] [#]} (31. Qf3 $15) 31... Qxh5 $2 (31... f5 $1 $19 {has better winning chances.} 32. Nd6 exd6 33. Rxe8+ Bxe8 34. Bxd6 Bxh5) 32. Nd2 Bf6 (32... Rg8 $142 33. Qh3 Qd1+ 34. Nf1 e6) 33. Nf3 (33. Qh3 $17 Qxh3 34. Rxh3) 33... Rg8 $36 {[%mdl 2048] White is under strong pressure.} 34. Qf2 Qg4 35. Ne1 $2 (35. Kf1) 35... Bh4 {This bishop pair is nice.} 36. Qe2 Qg6 (36... Qf4 $142 {...Bxe1 is the strong threat.} 37. d5 Bxd5) 37. Qc2 $2 (37. c4 $19) 37... Qxc2 38. Nf3 Qg6 {Weighted Error Value: White=0.58/Black=0.35} 0-1